fUST/lending_fUST_20240218
["ID","MTS","AMOUNT","RATE_DAILY","PERIOD"]
[314386051,1708253442922,-500.0,0.00028219,2]
[314386052,1708253442931,-824.31,0.00028219,2]
[314386053,1708253442941,-500.0,0.00028219,2]
[314386054,1708253442952,-500.0,0.00028219,2]
[314386055,1708253442961,-1045.53,0.00028219,2]
[314386056,1708253442970,-2716.23,0.00028219,2]
[314386057,1708253442979,-3579.56,0.00028219,2]
[314386058,1708253442988,-920.85,0.00028219,2]
[314386059,1708253442997,-1095.21,0.00028219,2]
[314386060,1708253443006,-6540.75,0.00028219,2]
[314386061,1708253443015,-926.66,0.00028219,2]
[314386062,1708253443024,-6404.79,0.00028219,2]
[314386063,1708253443033,-518.58,0.00028219,2]
[314386064,1708253443042,-500.0,0.00028219,2]
[314386065,1708253443051,-678.95,0.00028219,2]
[314386066,1708253443060,-500.0,0.00028219,2]
[314386067,1708253443069,-300.0,0.00028382,2]
[314386068,1708253443078,-3616.89,0.00028492,2]
[314386069,1708253443087,-502.19323529,0.00028493,2]
[314386070,1708253443096,-503.74,0.00028493,2]
[314386071,1708253443105,-500.0,0.00028493,2]
[314386072,1708253443114,-500.0,0.00028493,2]
[314386073,1708253443123,-500.0,0.00028493,2]
[314386074,1708253443133,-500.0,0.00028493,2]
[314386075,1708253443142,-500.0,0.00028493,2]
[314386076,1708253443150,-541.89,0.00028493,2]
[314386077,1708253443160,-500.0,0.00028493,2]
[314386078,1708253443169,-500.0,0.00028493,2]
[314386079,1708253443178,-500.0,0.00028493,2]
[314386080,1708253443187,-500.0,0.00028493,2]
[314386081,1708253443197,-500.0,0.00028493,2]
[314386082,1708253443206,-736.46,0.00028493,2]
[314386083,1708253443214,-500.0,0.00028493,2]
[314386084,1708253443224,-4693.52,0.00028493,2]
[314386085,1708253443233,-527.87,0.00028493,2]
[314386086,1708253443242,-612.75,0.00028493,2]
[314386087,1708253443251,-4053.15,0.00028493,2]
[314386088,1708253443260,-500.0,0.00028493,2]
[314386089,1708253443270,-500.43,0.00028493,2]
[314386090,1708253443279,-820.57,0.00028493,2]
[314386091,1708253443288,-586.53,0.00028493,2]
[314386092,1708253443297,-5594.93,0.00028493,2]
[314386093,1708253443306,-500.0,0.00028493,2]
[314386094,1708253443315,-824.31,0.00028493,2]
[314386095,1708253443324,-500.0,0.00028493,2]
[314386096,1708253443333,-500.0,0.00028493,2]
[314386097,1708253443343,-1045.53,0.00028493,2]
[314386098,1708253443352,-2716.23,0.00028493,2]
[314386099,1708253443361,-3579.56,0.00028493,2]
[314386100,1708253443370,-920.85,0.00028493,2]
[314386101,1708253443379,-1095.21,0.00028493,2]
[314386102,1708253443388,-6540.75,0.00028493,2]
[314386103,1708253443397,-926.66,0.00028493,2]
[314386104,1708253443406,-6404.79,0.00028493,2]
[314386105,1708253443416,-518.58,0.00028493,2]
[314386106,1708253443425,-500.0,0.00028493,2]
[314386107,1708253443434,-678.95,0.00028493,2]
[314386108,1708253443444,-500.0,0.00028493,2]
[314386109,1708253443453,-3616.89,0.00028766,2]
[314386110,1708253443462,-3616.89,0.00028766,2]
[314386111,1708253443471,-503.74,0.00028767,2]
[314386112,1708253443480,-415.81772748,0.00028767,2]
[314386113,1708253443489,-500.0,0.00028767,2]
[314386114,1708253443499,-500.0,0.00028767,2]
[314386115,1708253443508,-312.41453173,0.00028767,2]
[314386116,1708253443516,-500.0,0.00028767,2]
[314386117,1708253443526,-541.89,0.00028767,2]
[314386118,1708253443535,-500.0,0.00028767,2]
[314386119,1708253443605,-275.95973092,0.00028767,2]
[314386120,1708253443621,-500.0,0.00028767,2]
[314386121,1708253443630,-500.0,0.00028767,2]
[314386122,1708253443640,-500.0,0.00028767,2]
[314386123,1708253443649,-736.46,0.00028767,2]
[314386124,1708253443658,-500.0,0.00028767,2]
[314386125,1708253443667,-4693.52,0.00028767,2]
[314386126,1708253443676,-527.87,0.00028767,2]
[314386127,1708253443685,-612.75,0.00028767,2]
[314386128,1708253443695,-4053.15,0.00028767,2]
[314386129,1708253443704,-500.0,0.00028767,2]
[314386130,1708253443713,-500.43,0.00028767,2]
[314386131,1708253443723,-820.57,0.00028767,2]
[314386132,1708253443731,-586.53,0.00028767,2]
[314386133,1708253443740,-5594.93,0.00028767,2]
[314386134,1708253443749,-500.0,0.00028767,2]
[314386135,1708253443759,-824.31,0.00028767,2]
[314386136,1708253443767,-500.0,0.00028767,2]
[314386137,1708253443776,-500.0,0.00028767,2]
[314386138,1708253443785,-1045.53,0.00028767,2]
[314386139,1708253443794,-2716.23,0.00028767,2]
[314386140,1708253443807,-155.0,0.00028767,2]
[314386141,1708253443815,-3579.56,0.00028767,2]
[314386142,1708253443824,-920.85,0.00028767,2]
[314386143,1708253443833,-463.288558,0.00028767,2]
[314386144,1708253443842,-1095.21,0.00028767,2]
[314386145,1708253443851,-6540.75,0.00028767,2]
[314386146,1708253443861,-463.288558,0.00028767,2]
[314386147,1708253443870,-926.66,0.00028767,2]
[314386148,1708253443880,-6404.79,0.00028767,2]
[314386149,1708253443890,-518.58,0.00028767,2]
[314386150,1708253443898,-500.0,0.00028767,2]
[314386151,1708253443908,-151.0,0.00028767,2]
[314386152,1708253443917,-274.414081,0.00028767,2]
[314386153,1708253443926,-678.95,0.00028767,2]
[314386154,1708253443937,-500.0,0.00028767,2]
[314386155,1708253443946,-224.8,0.000288,4]
[314386156,1708253443956,-224.8,0.000288,4]
[314386157,1708253443965,-224.8,0.000288,4]
[314386158,1708253443975,-224.8,0.000288,4]
[314386159,1708253443984,-224.801,0.000288,4]
[314386160,1708253443994,-300.0,0.00029001,2]
[314386161,1708253444003,-3616.89,0.0002904,2]
[314386162,1708253444012,-503.74,0.00029041,2]
[314386163,1708253444022,-500.0,0.00029041,2]
[314386164,1708253444031,-500.0,0.00029041,2]
[314386165,1708253444041,-500.0,0.00029041,2]
[314386166,1708253444050,-541.89,0.00029041,2]
[314386167,1708253444060,-500.0,0.00029041,2]
[314386168,1708253444069,-500.0,0.00029041,2]
[314386169,1708253444078,-500.0,0.00029041,2]
[314386170,1708253444088,-222.619636,0.00029041,2]
[314386171,1708253444097,-222.619636,0.00029041,2]
[314386172,1708253444106,-736.46,0.00029041,2]
[314386173,1708253444115,-151.0,0.00029041,2]
[314386174,1708253444124,-500.0,0.00029041,2]
[314386175,1708253444134,-4693.52,0.00029041,2]
[314386176,1708253444143,-527.87,0.00029041,2]
[314386177,1708253444152,-612.75,0.00029041,2]
[314386178,1708253444161,-4053.15,0.00029041,2]
[314386179,1708253444170,-500.0,0.00029041,2]
[314386180,1708253444179,-151.0,0.00029041,2]
[314386181,1708253444188,-500.43,0.00029041,2]
[314386182,1708253444197,-820.57,0.00029041,2]
[314386183,1708253444206,-586.53,0.00029041,2]
[314386184,1708253444216,-5594.93,0.00029041,2]
[314386185,1708253444225,-500.0,0.00029041,2]
[314386186,1708253444235,-824.31,0.00029041,2]
[314386187,1708253444244,-500.0,0.00029041,2]
[314386188,1708253444254,-879.543871,0.00029041,2]
[314386189,1708253444263,-879.543871,0.00029041,2]
[314386190,1708253444273,-500.0,0.00029041,2]
[314386191,1708253444283,-1045.53,0.00029041,2]
[314386192,1708253444293,-2716.23,0.00029041,2]
[314386193,1708253444302,-3579.56,0.00029041,2]
[314386194,1708253444311,-920.85,0.00029041,2]
[314386195,1708253444320,-1095.21,0.00029041,2]
[314386196,1708253444330,-6540.75,0.00029041,2]
[314386197,1708253444339,-926.66,0.00029041,2]
[314386198,1708253444348,-6404.79,0.00029041,2]
[314386199,1708253444358,-518.58,0.00029041,2]
[314386200,1708253444368,-500.0,0.00029041,2]
[314386201,1708253444377,-678.95,0.00029041,2]
[314386202,1708253444387,-500.0,0.00029041,2]
[314386203,1708253444396,-5000.0,0.00029085,5]
[314386204,1708253444406,-5000.0,0.00029086,5]
[314386205,1708253444415,-152.30138234,0.00029169,4]
[314386206,1708253444425,-11655.70070114,0.00029215,2]
[314386207,1708253444434,-150.0,0.00029218,2]
[314386208,1708253444443,-620.00537836,0.00029311,2]
[314386209,1708253444453,-285.34624526,0.00029314,2]
[314386210,1708253444462,-500.0,0.00029314,2]
[314386211,1708253444472,-500.0,0.00029314,2]
[314386212,1708253444481,-500.0,0.00029314,2]
[314386213,1708253444490,-500.0,0.00029314,2]
[314386214,1708253444499,-613.54943699,0.00029314,2]
[314386215,1708253444508,-500.0,0.00029314,2]
[314386216,1708253444517,-286.36451332,0.00029314,2]
[314386217,1708253444527,-208.5588087,0.00029314,2]
[314386218,1708253444537,-500.0,0.00029314,2]
[314386219,1708253444546,-500.0,0.00029314,2]
[314386220,1708253444555,-500.0,0.00029314,2]
[314386221,1708253444564,-500.0,0.00029314,2]
[314386222,1708253444573,-500.0,0.00029314,2]
[314386223,1708253444583,-500.0,0.00029314,2]
[314386224,1708253444592,-500.0,0.00029314,2]
[314386225,1708253444602,-3616.89,0.00029314,2]
[314386226,1708253444613,-503.74,0.00029315,2]
[314386227,1708253444625,-500.0,0.00029315,2]
[314386228,1708253444634,-151.0,0.00029315,2]
[314386229,1708253444643,-500.0,0.00029315,2]
[314386230,1708253444652,-500.0,0.00029315,2]
[314386231,1708253444660,-541.89,0.00029315,2]
[314386232,1708253444669,-500.0,0.00029315,2]
[314386233,1708253444678,-500.0,0.00029315,2]
[314386234,1708253444687,-500.0,0.00029315,2]
[314386235,1708253444696,-736.46,0.00029315,2]
[314386236,1708253444706,-500.0,0.00029315,2]
[314386237,1708253444715,-4693.52,0.00029315,2]
[314386238,1708253444724,-527.87,0.00029315,2]
[314386239,1708253444733,-612.75,0.00029315,2]
[314386240,1708253444742,-4053.15,0.00029315,2]
[314386241,1708253444751,-500.0,0.00029315,2]
[314386242,1708253444760,-500.43,0.00029315,2]
[314386243,1708253444770,-820.57,0.00029315,2]
[314386244,1708253444779,-586.53,0.00029315,2]
[314386245,1708253444788,-5594.93,0.00029315,2]
[314386246,1708253444799,-500.0,0.00029315,2]
[314386247,1708253444809,-824.31,0.00029315,2]
[314386248,1708253444818,-500.0,0.00029315,2]
[314386249,1708253444827,-500.0,0.00029315,2]
[314386250,1708253444837,-1045.53,0.00029315,2]
[314386251,1708253444847,-2716.23,0.00029315,2]
[314386252,1708253444856,-3579.56,0.00029315,2]
[314386253,1708253444865,-920.85,0.00029315,2]
[314386254,1708253444874,-463.288558,0.00029315,2]
[314386255,1708253444884,-1095.21,0.00029315,2]
[314386256,1708253444893,-6540.75,0.00029315,2]
[314386257,1708253444902,-463.288558,0.00029315,2]
[314386258,1708253444912,-926.66,0.00029315,2]
[314386259,1708253444921,-6404.79,0.00029315,2]
[314386260,1708253444930,-518.58,0.00029315,2]
[314386261,1708253444939,-500.0,0.00029315,2]
[314386262,1708253444949,-151.0,0.00029315,2]
[314386263,1708253444958,-678.95,0.00029315,2]
[314386264,1708253444967,-500.0,0.00029315,2]
[314386265,1708253444978,-620.00001317,0.00029348,2]
[314386266,1708253444987,-357.36679453,0.00029399,2]
[314386267,1708253444996,-820.791,0.000294,4]
[314386268,1708253445006,-820.792,0.000294,4]
[314386269,1708253445015,-820.792,0.000294,4]
[314386270,1708253445024,-820.792,0.000294,4]
[314386271,1708253445033,-820.792,0.000294,4]
[314386272,1708253445042,-2908.91814448,0.00029471,2]
[314386273,1708253445051,-1000.0,0.00029544,7]
[314386274,1708253445061,-1000.0,0.00029546,7]
[314386275,1708253445070,-3616.89,0.00029588,2]
[314386276,1708253445079,-879.543871,0.00029588,2]
[314386277,1708253445087,-879.543871,0.00029588,2]
[314386278,1708253445097,-503.74,0.00029589,2]
[314386279,1708253445105,-247.27001,0.00029589,2]
[314386280,1708253445114,-500.0,0.00029589,2]
[314386281,1708253445123,-500.0,0.00029589,2]
[314386282,1708253445133,-500.0,0.00029589,2]
[314386283,1708253445142,-541.89,0.00029589,2]
[314386285,1708253445151,-500.0,0.00029589,2]
[314386286,1708253445160,-500.0,0.00029589,2]
[314386287,1708253445169,-500.0,0.00029589,2]
[314386289,1708253445177,-222.619636,0.00029589,2]
[314386290,1708253445187,-222.619636,0.00029589,2]
[314386291,1708253445195,-736.46,0.00029589,2]
[314386292,1708253445204,-151.0,0.00029589,2]
[314386293,1708253445214,-500.0,0.00029589,2]
[314386294,1708253445223,-4693.52,0.00029589,2]
[314386296,1708253445231,-527.87,0.00029589,2]
[314386297,1708253445241,-612.75,0.00029589,2]
[314386298,1708253445250,-4053.15,0.00029589,2]
[314386299,1708253445259,-500.0,0.00029589,2]
[314386300,1708253445268,-151.0,0.00029589,2]
[314386301,1708253445277,-500.43,0.00029589,2]
[314386302,1708253445286,-820.57,0.00029589,2]
[314386303,1708253445295,-586.53,0.00029589,2]
[314386304,1708253445304,-5594.93,0.00029589,2]
[314386305,1708253445313,-500.0,0.00029589,2]
[314386306,1708253445322,-824.31,0.00029589,2]
[314386307,1708253445331,-500.0,0.00029589,2]
[314386308,1708253445341,-500.0,0.00029589,2]
[314386309,1708253445350,-1045.53,0.00029589,2]
[314386310,1708253445360,-2716.23,0.00029589,2]
[314386311,1708253445370,-3579.56,0.00029589,2]
[314386312,1708253445379,-920.85,0.00029589,2]
[314386314,1708253445455,-1095.21,0.00029589,2]
[314386316,1708253445465,-6540.75,0.00029589,2]
[314386318,1708253445474,-926.66,0.00029589,2]
[314386319,1708253445483,-6404.79,0.00029589,2]
[314386320,1708253445492,-518.58,0.00029589,2]
[314386321,1708253445502,-678.95,0.00029589,2]
[314386323,1708253445511,-500.0,0.00029589,2]
[314386325,1708253445520,-307.6863695,0.00029589,2]
[314386327,1708253445530,-309.3558055,0.00029589,2]
[314386329,1708253445539,-300.0,0.0002962,2]
[314386331,1708253445547,-200.0,0.000297,4]
[314386333,1708253445557,-2000.0,0.000298,2]
[314386335,1708253445566,-3195.663274,0.0002981,2]
[314386337,1708253445575,-3616.89,0.00029862,2]
[314386338,1708253445584,-503.74,0.00029863,2]
[314386340,1708253445593,-500.0,0.00029863,2]
[314386342,1708253445603,-500.0,0.00029863,2]
[314386344,1708253445613,-500.0,0.00029863,2]
[314386346,1708253445622,-541.89,0.00029863,2]
[314386348,1708253445631,-500.0,0.00029863,2]
[314386350,1708253445640,-500.0,0.00029863,2]
[314386352,1708253445649,-500.0,0.00029863,2]
[314386354,1708253445659,-736.46,0.00029863,2]
[314386356,1708253445668,-500.0,0.00029863,2]
[314386359,1708253445677,-4693.52,0.00029863,2]
[314386361,1708253445686,-527.87,0.00029863,2]
[314386364,1708253445695,-612.75,0.00029863,2]
[314386367,1708253445704,-4053.15,0.00029863,2]
[314386369,1708253445712,-500.0,0.00029863,2]
[314386371,1708253445721,-500.43,0.00029863,2]
[314386373,1708253445730,-820.57,0.00029863,2]
[314386375,1708253445739,-586.53,0.00029863,2]
[314386376,1708253445748,-5594.93,0.00029863,2]
[314386377,1708253445757,-500.0,0.00029863,2]
[314386378,1708253445766,-824.31,0.00029863,2]
[314386379,1708253445774,-500.0,0.00029863,2]
[314386380,1708253445783,-500.0,0.00029863,2]
[314386381,1708253445792,-1045.53,0.00029863,2]
[314386382,1708253445803,-2716.23,0.00029863,2]
[314386383,1708253445811,-3579.56,0.00029863,2]
[314386384,1708253445820,-920.85,0.00029863,2]
[314386385,1708253445829,-463.288558,0.00029863,2]
[314386386,1708253445838,-1095.21,0.00029863,2]
[314386387,1708253445847,-6540.75,0.00029863,2]
[314386388,1708253445857,-463.288558,0.00029863,2]
[314386389,1708253445866,-926.66,0.00029863,2]
[314386390,1708253445874,-6404.79,0.00029863,2]
[314386391,1708253445884,-518.58,0.00029863,2]
[314386392,1708253445893,-151.0,0.00029863,2]
[314386393,1708253445902,-678.95,0.00029863,2]
[314386394,1708253445910,-750.97033967,0.00029898,2]
[314386395,1708253445919,-3616.89,0.00029898,2]
[314386397,1708253445928,-2083.06303147,0.00029898,2]
[314386418,1708253446127,-2689.65,0.0002499,3]
[314386420,1708253446136,-645.00574885,0.00025618,2]
[314386422,1708253446145,-1045.66,0.00027397,2]
[314386423,1708253446154,-796.58751102,0.00027671,2]
[314386427,1708253446277,-249.07248898,0.00027671,2]
[314386428,1708253446287,-1045.66,0.00027945,2]
[314386429,1708253446296,-1045.66,0.00028219,2]
[314386430,1708253446305,-1045.66,0.00028493,2]
[314386431,1708253446314,-151.0,0.00028493,2]
[314386432,1708253446323,-1045.66,0.00028767,2]
[314386433,1708253446333,-1045.66,0.00029041,2]
[314386434,1708253446342,-151.0,0.00029041,2]
[314386435,1708253446351,-1045.66,0.00029315,2]
[314386436,1708253446361,-151.0,0.00029315,2]
[314386437,1708253446370,-1045.66,0.00029589,2]
[314386438,1708253446379,-151.0,0.00029863,2]
[314386439,1708253446388,-1045.66,0.00029863,2]
[314386440,1708253446398,-1533.82696853,0.00029898,2]
[314386441,1708253446407,-3616.89,0.00029898,2]
[314386442,1708253446418,-3616.89,0.00029898,2]
[314386443,1708253446427,-3617.09,0.00029898,2]
[314386444,1708253446437,-642.10028583,0.00029898,2]
[314386445,1708253446446,-152.61832865,0.000299,2]
[314386446,1708253446456,-21856.77737097,0.000299,2]
[314386447,1708253446465,-151.0,0.000299,2]
[314386448,1708253446474,-879.543871,0.000299,2]
[314386449,1708253446484,-879.543871,0.000299,2]
[314386450,1708253446494,-286.52848395,0.00029998,2]
[314386451,1708253446503,-443.45641442,0.00029999,2]
[314386452,1708253446512,-151.0,0.00029999,2]
[314386453,1708253446521,-14552.20222425,0.0003,5]
[314386454,1708253446534,-3153.64778566,0.0003,5]
[314386455,1708253446546,-15912.52032092,0.0003,5]
[314386460,1708253866326,-161.28604553,0.00029998,60]
[314386461,1708253866351,-1000.0,0.0003,30]
[314386462,1708253903318,-300.0,0.0003,14]
[314386463,1708253919865,-21320.43935371,0.0003,10]
[314386464,1708253928388,-281.99355911,0.00029,7]
[314386465,1708253928419,-1200.0,0.0003,7]
[314386466,1708253937423,-5000.0,0.00029078,5]
[314386467,1708253937465,-125000.0,0.0003,5]
[314386472,1708254632386,-254.13532007,0.00023216,2]
[314386474,1708254632396,-167.975353,0.00023217,2]
[314386476,1708254632405,-716.20701478,0.00023613,2]
[314386491,1708254638429,-195.16966022,0.00023613,2]
[314386492,1708254638439,-3080.29057382,0.00023861,2]
[314386508,1708254641703,-354.51783793,0.00023861,2]
[314386509,1708254641716,-1269.03677984,0.00023861,2]
[314386519,1708254643388,-285.62265401,0.00023861,2]
[314386520,1708254643398,-645.00574885,0.00023999,2]
[314386521,1708254643407,-1045.83521093,0.00024,2]
[314386522,1708254643419,-3688.24879313,0.00024,2]
[314386523,1708254643429,-24900.0,0.00024146,2]
[314386524,1708254643437,-181.2170374,0.00024608,2]
[314386525,1708254643446,-169.599211,0.00024709,2]
[314386527,1708254643455,-855.54,0.0002499,3]
[314386528,1708254643464,-234.59,0.0002499,3]
[314386529,1708254643473,-2274.45,0.0002499,3]
[314386530,1708254643482,-1895.38,0.0002499,3]
[314386531,1708254643491,-1589.48484787,0.00024999,2]
[314386532,1708254643500,-7417.65678579,0.00025,2]
[314386533,1708254643510,-84720.8302684,0.00025,2]
[314386534,1708254643519,-155.31725601,0.00025096,2]
[314386535,1708254643528,-392.58073794,0.00025297,2]
[314386536,1708254643537,-200.0,0.00025479,2]
[314386537,1708254643546,-620.99348506,0.00025647,2]
[314386538,1708254643555,-620.04967425,0.00026929,2]
[314386539,1708254643564,-10325.0,0.00026954,2]
[314386540,1708254643573,-1993.50047135,0.00026956,2]
[314386541,1708254643582,-24269.55474563,0.00026967,2]
[314386542,1708254643591,-4268.09588493,0.0002697,2]
[314386543,1708254643601,-514.69486966,0.00027396,2]
[314386544,1708254643610,-500.0,0.00027396,2]
[314386545,1708254643619,-500.0,0.00027396,2]
[314386546,1708254643628,-500.0,0.00027396,2]
[314386547,1708254643637,-214.58234486,0.00027396,2]
[314386548,1708254643647,-500.0,0.00027396,2]
[314386549,1708254643656,-538.17739062,0.00027396,2]
[314386550,1708254643665,-500.0,0.00027396,2]
[314386551,1708254643685,-500.0,0.00027396,2]
[314386552,1708254643696,-400.0,0.00027396,2]
[314386553,1708254643706,-500.0,0.00027396,2]
[314386554,1708254643715,-500.0,0.00027396,2]
[314386555,1708254643724,-500.0,0.00027396,2]
[314386556,1708254643733,-500.0,0.00027396,2]
[314386557,1708254643743,-500.0,0.00027396,2]
[314386558,1708254643752,-500.0,0.00027396,2]
[314386559,1708254643762,-606.83398735,0.00027396,2]
[314386560,1708254643771,-500.0,0.00027396,2]
[314386561,1708254643781,-500.0,0.00027397,2]
[314386562,1708254643790,-500.0,0.00027397,2]
[314386563,1708254643800,-500.0,0.00027397,2]
[314386564,1708254643809,-500.0,0.00027397,2]
[314386565,1708254643819,-500.0,0.00027397,2]
[314386566,1708254643828,-507.44634738,0.00027397,2]
[314386567,1708254643838,-500.0,0.00027397,2]
[314386568,1708254643847,-500.0,0.00027397,2]
[314386569,1708254643857,-500.0,0.00027397,2]
[314386570,1708254643866,-500.0,0.00027397,2]
[314386571,1708254643875,-500.0,0.00027397,2]
[314386572,1708254643885,-500.0,0.00027397,2]
[314386573,1708254643895,-500.0,0.00027397,2]
[314386574,1708254643904,-500.0,0.00027397,2]
[314386575,1708254643915,-500.0,0.00027397,2]
[314386576,1708254643925,-500.0,0.00027397,2]
[314386577,1708254643936,-500.0,0.00027397,2]
[314386578,1708254643945,-500.0,0.00027397,2]
[314386579,1708254643954,-500.0,0.00027397,2]
[314386580,1708254643964,-543.08,0.00027397,2]
[314386581,1708254643973,-500.0,0.00027397,2]
[314386582,1708254643983,-500.0,0.00027397,2]
[314386583,1708254643992,-500.0,0.00027397,2]
[314386584,1708254644003,-500.0,0.00027397,2]
[314386585,1708254644012,-500.0,0.00027397,2]
[314386586,1708254644021,-594.08,0.00027397,2]
[314386587,1708254644031,-645.77,0.00027397,2]
[314386588,1708254644041,-500.0,0.00027397,2]
[314386589,1708254644050,-500.0,0.00027397,2]
[314386590,1708254644059,-4134.77,0.00027397,2]
[314386591,1708254644068,-609.97,0.00027397,2]
[314386592,1708254644078,-620.25,0.00027397,2]
[314386593,1708254644087,-3570.63,0.00027397,2]
[314386594,1708254644100,-500.0,0.00027397,2]
[314386595,1708254644110,-500.0,0.00027397,2]
[314386596,1708254644119,-537.17,0.00027397,2]
[314386597,1708254644129,-516.7,0.00027397,2]
[314386598,1708254644138,-726.18,0.00027397,2]
[314386599,1708254644148,-500.0,0.00027397,2]
[314386600,1708254644157,-1292.42,0.00027397,2]
[314386601,1708254644167,-1292.42,0.00027397,2]
[314386602,1708254644177,-1292.42,0.00027397,2]
[314386603,1708254644187,-1292.42,0.00027397,2]
[314386604,1708254644196,-1292.42,0.00027397,2]
[314386605,1708254644206,-722.88,0.00027397,2]
[314386606,1708254644325,-4910.02,0.00027397,2]
[314386607,1708254644334,-500.0,0.00027397,2]
[314386608,1708254644343,-871.27,0.00027397,2]
[314386609,1708254644352,-767.38,0.00027397,2]
[314386610,1708254644361,-500.0,0.00027397,2]
[314386611,1708254644371,-810.83,0.00027397,2]
[314386612,1708254644380,-500.0,0.00027397,2]
[314386613,1708254644390,-500.0,0.00027397,2]
[314386614,1708254644399,-500.0,0.00027397,2]
[314386615,1708254644408,-5723.16,0.00027397,2]
[314386616,1708254644417,-155.0,0.00027397,2]
[314386617,1708254644426,-2263.52,0.00027397,2]
[314386618,1708254644435,-5604.19,0.00027397,2]
[314386619,1708254644444,-2982.97,0.00027397,2]
[314386620,1708254644453,-500.0,0.00027397,2]
[314386621,1708254644462,-500.0,0.00027397,2]
[314386622,1708254644471,-958.31,0.00027397,2]
[314386623,1708254644481,-500.0,0.00027397,2]
[314386624,1708254644491,-500.0,0.00027397,2]
[314386625,1708254644500,-500.0,0.00027397,2]
[314386626,1708254644509,-1292.42,0.0002767,2]
[314386627,1708254644519,-500.0,0.00027671,2]
[314386628,1708254644528,-500.0,0.00027671,2]
[314386629,1708254644537,-500.0,0.00027671,2]
[314386630,1708254644546,-500.0,0.00027671,2]
[314386631,1708254644555,-500.0,0.00027671,2]
[314386632,1708254644564,-500.0,0.00027671,2]
[314386633,1708254644573,-500.0,0.00027671,2]
[314386634,1708254644582,-500.0,0.00027671,2]
[314386635,1708254644591,-500.0,0.00027671,2]
[314386636,1708254644600,-500.0,0.00027671,2]
[314386637,1708254644609,-500.0,0.00027671,2]
[314386638,1708254644618,-543.08,0.00027671,2]
[314386639,1708254644627,-500.0,0.00027671,2]
[314386640,1708254644637,-500.0,0.00027671,2]
[314386641,1708254644646,-500.0,0.00027671,2]
[314386642,1708254644655,-500.0,0.00027671,2]
[314386643,1708254644664,-594.08,0.00027671,2]
[314386644,1708254644673,-645.77,0.00027671,2]
[314386645,1708254644682,-500.0,0.00027671,2]
[314386646,1708254644691,-500.0,0.00027671,2]
[314386647,1708254644702,-4134.77,0.00027671,2]
[314386648,1708254644711,-609.97,0.00027671,2]
[314386649,1708254644720,-620.25,0.00027671,2]
[314386650,1708254644729,-3570.63,0.00027671,2]
[314386651,1708254644738,-500.0,0.00027671,2]
[314386652,1708254644748,-500.0,0.00027671,2]
[314386653,1708254644757,-537.17,0.00027671,2]
[314386654,1708254644766,-516.7,0.00027671,2]
[314386655,1708254644775,-726.18,0.00027671,2]
[314386656,1708254644785,-500.0,0.00027671,2]
[314386657,1708254644794,-722.88,0.00027671,2]
[314386658,1708254644803,-4910.02,0.00027671,2]
[314386659,1708254644812,-500.0,0.00027671,2]